bitfinex-derivatives/quotes_BTCF0:USTF0_20250129
["timestamp","ask_amount","ask_price","bid_price","bid_amount"]
[1738183936495,0.00121277,104280.0,104270.0,0.601919]
[1738183936798,0.00014397,104290.0,104280.0,0.1968]
[1738183936997,0.36094397,104290.0,104280.0,0.4068]
[1738183937197,0.55272597,104290.0,104280.0,0.215]
[1738183937597,0.55272597,104290.0,104280.0,0.21]
[1738183938099,0.51935171,104290.0,104270.0,0.3761]
[1738183938306,0.5526,104280.0,104270.0,0.3711]
[1738183938597,0.5526,104280.0,104270.0,0.622919]
[1738183938988,0.5526,104280.0,104270.0,0.621919]
[1738183939200,0.71100774,104280.0,104270.0,0.4301]
[1738183939594,0.5536,104280.0,104270.0,0.4301]
[1738183939995,0.5536,104280.0,104270.0,0.4351]
[1738183940301,0.71200774,104280.0,104270.0,0.23367236]
[1738183940500,0.71200774,104280.0,104270.0,0.005]
[1738183940694,0.191819,104270.0,104260.0,0.18018622]
[1738183940893,0.552619,104270.0,104260.0,0.18018622]
[1738183941291,0.191819,104270.0,104260.0,0.18018622]
[1738183941605,0.552619,104270.0,104260.0,0.18018622]
[1738183941800,0.71102674,104270.0,104250.0,0.00143875]
[1738183941998,0.552637,104260.0,104250.0,0.01143875]
[1738183942195,0.552637,104260.0,104250.0,0.20329475]
[1738183942395,0.192835,104270.0,104260.0,0.191837]
[1738183942604,0.553635,104270.0,104250.0,0.15984649]
[1738183942798,0.553635,104270.0,104250.0,0.40328375]
[1738183943005,0.554635,104270.0,104260.0,0.006]
[1738183943207,0.55377897,104270.0,104260.0,0.136]
[1738183943400,0.00114397,104270.0,104260.0,0.68204474]
[1738183943600,0.00114397,104270.0,104260.0,0.523637]
[1738183943800,0.00214397,104270.0,104260.0,0.517637]
[1738183943995,0.19396297,104270.0,104260.0,0.517637]
[1738183944504,0.55376297,104270.0,104260.0,0.3258]
[1738183944692,0.71217071,104270.0,104260.0,0.135]
[1738183946200,0.55376297,104270.0,104260.0,0.135]
[1738183947703,0.36194397,104270.0,104260.0,0.326837]
[1738183947903,0.28655619,104280.0,104260.0,0.65420774]
[1738183948113,0.08580274,104280.0,104270.0,0.53772674]
[1738183948301,0.5614528,104290.0,104280.0,0.1918]
[1738183948497,0.5614528,104290.0,104280.0,0.71880774]
[1738183948697,0.66975855,104300.0,104280.0,0.52700774]
[1738183949007,0.86153155,104300.0,104290.0,0.191782]
[1738183949307,0.86167552,104300.0,104290.0,0.301782]
[1738183949611,0.87066407,104300.0,104290.0,0.301782]
[1738183949903,0.87066407,104300.0,104290.0,0.11]
[1738183950110,1.23246407,104300.0,104290.0,0.11]
[1738183950312,0.51086407,104300.0,104290.0,0.301782]
[1738183950611,0.51086407,104300.0,104290.0,0.11]
[1738183950612,0.87166407,104300.0,104290.0,0.11]
[1738183950813,0.87166407,104300.0,104290.0,0.112]
[1738183951000,1.03007181,104300.0,104290.0,0.112]
[1738183951196,0.72111326,104300.0,104290.0,0.112]
[1738183951408,0.72111326,104300.0,104250.0,0.19329175]
[1738183951409,0.04795,104280.0,104250.0,0.19329175]
[1738183951708,0.552637,104260.0,104250.0,0.3751]
[1738183951900,0.55247688,104260.0,104250.0,0.3751]
[1738183952110,0.3608,104270.0,104250.0,0.3751]
[1738183952298,0.3608,104260.0,104250.0,0.53350774]
[1738183952500,0.191828,104270.0,104250.0,0.89630774]
[1738183952710,0.55277197,104270.0,104260.0,0.191837]
[1738183953005,0.55277197,104270.0,104260.0,0.13]
[1738183953204,0.71117971,104270.0,104260.0,0.13]
[1738183953814,0.191837,104260.0,104250.0,0.394956]
[1738183954118,0.36094397,104270.0,104250.0,0.394956]
[1738183954119,0.86172752,104270.0,104260.0,0.191837]
[1738183954309,0.191837,104260.0,104250.0,0.394949]
[1738183954500,0.552637,104260.0,104250.0,0.614949]
[1738183954700,0.552637,104260.0,104250.0,0.612949]
[1738183955412,0.552637,104260.0,104250.0,0.4211]
[1738183956004,0.553637,104260.0,104250.0,0.4221]
[1738183956310,0.553637,104260.0,104250.0,0.4161]
[1738183956701,0.69465848,104260.0,104250.0,0.4161]
[1738183957005,0.85306622,104260.0,104250.0,0.221]
[1738183957203,0.85306622,104260.0,104250.0,0.004]
[1738183957411,0.69465848,104260.0,104250.0,0.004]
[1738183958112,0.69465848,104260.0,104250.0,0.245856]
[1738183958307,0.70359095,104260.0,104250.0,0.40426374]
[1738183958611,0.70359095,104260.0,104250.0,0.2325]
[1738183959406,0.70359095,104260.0,104250.0,0.424356]
[1738183959798,0.70359095,104260.0,104250.0,0.2325]
[1738183960202,0.73050654,104260.0,104250.0,0.2285]
[1738183960512,0.73050654,104260.0,104250.0,0.41995382]
[1738183961212,0.73050654,104260.0,104250.0,0.22809782]
[1738183961411,0.73050654,104260.0,104250.0,0.41995382]
[1738183961620,0.72157407,104260.0,104250.0,0.57836156]
[1738183962006,0.52973707,104260.0,104250.0,0.57836156]
[1738183962306,0.72157407,104260.0,104250.0,0.41995382]
[1738183962709,0.87998181,104260.0,104250.0,0.04959782]
[1738183963113,1.07538181,104260.0,104250.0,0.04959782]
[1738183964003,0.91697407,104260.0,104250.0,0.04959782]
[1738183964314,0.91697407,104260.0,104250.0,0.24145382]
[1738183964613,0.91697407,104260.0,104250.0,0.04959782]
[1738183964919,1.07538181,104260.0,104250.0,0.04959782]
[1738183965717,0.91697407,104260.0,104250.0,0.04959782]
[1738183965907,0.92797407,104260.0,104250.0,0.04959782]
[1738183966708,1.08738181,104260.0,104250.0,0.04959782]
[1738183967121,0.92897407,104260.0,104250.0,0.04959782]
[1738183967510,1.09652346,104260.0,104250.0,0.04959782]
[1738183968022,0.73674939,104260.0,104220.0,0.40313482]
[1738183968219,0.552692,104230.0,104220.0,0.6072963]
[1738183968609,0.552692,104230.0,104220.0,0.764611]
[1738183968917,0.71109974,104230.0,104220.0,0.18]
[1738183969411,0.191911,104220.0,104210.0,0.191929]
[1738183969611,0.552711,104220.0,104210.0,0.341929]
[1738183970412,0.552711,104220.0,104210.0,0.15]
[1738183970608,0.552711,104220.0,104210.0,0.155]
[1738183970812,0.552711,104220.0,104210.0,0.346929]
[1738183971406,0.71111874,104220.0,104210.0,0.005]
[1738183971613,0.191929,104210.0,104200.0,0.05962794]
[1738183971909,0.71113674,104210.0,104200.0,0.05962794]
[1738183972820,0.71313674,104210.0,104200.0,0.06562794]
[1738183973320,0.191984,104180.0,104170.0,0.28233508]
[1738183973517,0.71119174,104180.0,104170.0,0.29233508]
[1738183973719,0.71119174,104180.0,104170.0,0.28233508]
[1738183974224,0.552784,104180.0,104170.0,0.28233508]
[1738183974427,0.553784,104180.0,104170.0,0.00143995]
[1738183974924,0.553784,104180.0,104170.0,0.19344295]
[1738183975115,0.553784,104180.0,104170.0,0.192003]
[1738183975418,0.553784,104180.0,104170.0,0.381603]
[1738183976114,0.192003,104170.0,104160.0,0.192017]
[1738183976418,0.552803,104170.0,104160.0,0.202017]
[1738183977430,0.552803,104170.0,104160.0,0.01]
[1738183977721,0.192021,104160.0,104150.0,0.27473602]
[1738183977924,1.06353648,104160.0,104150.0,0.27473602]
[1738183978122,1.26043648,104160.0,104150.0,0.27473602]
[1738183978317,1.10202874,104160.0,104150.0,0.27473602]
[1738183978521,1.26043648,104160.0,104150.0,0.27473602]
[1738183978726,1.06841548,104160.0,104110.0,0.20124646]
[1738183979018,0.552895,104120.0,104110.0,0.20124646]
[1738183979419,0.552895,104120.0,104110.0,0.19211]
[1738183979829,0.71130274,104120.0,104100.0,0.489624]
[1738183980128,0.552895,104120.0,104100.0,0.489624]
[1738183980525,0.552895,104120.0,104110.0,0.192114]
[1738183980829,0.553895,104120.0,104110.0,0.192114]
[1738183981218,0.552895,104120.0,104100.0,0.49890326]
[1738183981527,0.554895,104120.0,104110.0,0.192114]
[1738183981727,0.554895,104120.0,104110.0,0.01]
[1738183981919,0.554895,104120.0,104070.0,0.192178]
[1738183981920,1.04041548,104120.0,104070.0,0.192178]
[1738183982120,0.19215,104090.0,104080.0,0.1841]
[1738183982314,0.192169,104080.0,104070.0,0.3916]
[1738183982518,0.552969,104080.0,104070.0,0.1992]
[1738183983230,0.192187,104070.0,104060.0,0.1841]
[1738183983416,0.71139474,104070.0,104060.0,0.1841]
[1738183983817,0.552987,104070.0,104060.0,0.1841]
[1738183984028,0.192187,104070.0,104060.0,0.376306]
[1738183984222,0.71152671,104080.0,104060.0,0.376306]
[1738183984415,0.71152671,104080.0,104050.0,0.1936645]
[1738183984416,0.192206,104060.0,104050.0,0.1936645]
[1738183984617,0.553006,104060.0,104050.0,0.0014415]
[1738183984926,0.553994,104070.0,104050.0,0.01645901]
[1738183985133,0.553006,104060.0,104050.0,0.01645901]
[1738183985429,0.71139774,104070.0,104050.0,0.20867401]
[1738183986026,0.3618,104060.0,104050.0,0.20867401]
[1738183986232,0.71341374,104060.0,104050.0,0.01645901]
[1738183986427,0.555006,104060.0,104050.0,0.01645901]
[1738183986734,0.002,104060.0,104050.0,0.20868301]
[1738183986937,0.002,104060.0,104050.0,0.60948301]
[1738183987230,0.002,104060.0,104050.0,0.24868301]
[1738183987434,0.001,104060.0,104050.0,0.24868301]
[1738183987619,0.3608,104060.0,104050.0,0.24868301]
[1738183987825,0.55499,104070.0,104060.0,0.192206]
[1738183988027,0.55399,104070.0,104060.0,0.192206]
[1738183988222,0.71239774,104070.0,104050.0,0.2036615]
[1738183988941,0.71239774,104070.0,104060.0,0.192206]
[1738183989128,0.55399,104070.0,104060.0,0.01]
[1738183989637,0.71239774,104070.0,104060.0,0.01]
[1738183989828,0.55399,104070.0,104060.0,0.01]
[1738183990826,0.55499,104070.0,104060.0,0.01]
[1738183991231,0.55499,104070.0,104060.0,0.202206]
[1738183991537,0.55399,104070.0,104060.0,0.202206]
[1738183991739,0.001,104070.0,104060.0,0.202206]
[1738183992040,0.00014397,104080.0,104060.0,0.52920774]
[1738183992226,0.00014397,104080.0,104070.0,0.370687]
[1738183992428,0.36094397,104080.0,104070.0,0.560687]
[1738183992636,0.36094397,104080.0,104070.0,0.71909474]
[1738183993542,0.55311297,104080.0,104070.0,0.71909474]
[1738183993739,0.55311297,104080.0,104070.0,0.66909474]
[1738183994338,0.00014397,104080.0,104070.0,0.66909474]
[1738183994529,0.00114397,104080.0,104070.0,0.67009474]
[1738183994936,0.3608,104090.0,104080.0,0.192169]
[1738183995242,0.20111804,104100.0,104090.0,0.19215]
[1738183995443,0.3608,104120.0,104090.0,0.34840774]
[1738183995736,0.3608,104120.0,104100.0,0.192128]
[1738183995940,0.552914,104110.0,104100.0,0.272128]
[1738183996241,0.552914,104110.0,104100.0,0.27227197]
[1738183996439,0.36094397,104120.0,104100.0,0.23855171]
[1738183996440,0.37040346,104120.0,104100.0,0.23855171]
[1738183996640,0.56250046,104120.0,104110.0,0.35052174]
[1738183996843,0.57150046,104120.0,104110.0,0.202114]
[1738183997039,0.57150046,104120.0,104110.0,0.01]
[1738183997547,0.56250046,104120.0,104110.0,0.01]
[1738183998135,0.5378112,104120.0,104100.0,0.00014397]
[1738183998337,0.192167,104090.0,104070.0,0.35058574]
[1738183998531,0.192169,104080.0,104070.0,0.66548574]
[1738183998738,0.552969,104080.0,104070.0,0.66548574]
[1738183999538,0.552969,104080.0,104070.0,0.14]
[1738183999737,0.36094397,104090.0,104080.0,0.192169]
[1738183999945,0.55310697,104090.0,104080.0,0.17]
[1738184000652,0.55310697,104090.0,104080.0,0.362169]
[1738184001040,0.55310697,104090.0,104080.0,0.365169]
[1738184001841,0.55309397,104090.0,104080.0,0.69617674]
[1738184002041,0.55309397,104090.0,104080.0,0.537769]
[1738184002553,0.55309397,104090.0,104080.0,0.3456]
[1738184003047,0.71150171,104090.0,104080.0,0.173]
[1738184003243,0.56233558,104090.0,104080.0,0.173]
[1738184003447,0.36094397,104090.0,104080.0,0.52357674]
[1738184003647,0.00014397,104090.0,104080.0,0.70267674]
[1738184003849,0.19229397,104090.0,104080.0,0.544269]
[1738184004043,0.55309397,104090.0,104080.0,0.544269]
[1738184004243,0.36094397,104090.0,104080.0,0.70267674]
[1738184005050,0.55307597,104090.0,104080.0,0.70267674]
[1738184005945,0.11417107,104100.0,104080.0,0.87130774]
[1738184006153,0.11417107,104100.0,104090.0,0.89233874]
[1738184006349,0.11417107,104100.0,104090.0,0.933931]
[1738184006745,0.11417107,104100.0,104090.0,1.09233874]
[1738184007145,0.12217107,104100.0,104090.0,1.09233874]
[1738184007559,0.11417107,104100.0,104090.0,1.09233874]
[1738184007851,0.12317107,104100.0,104090.0,1.09333874]
[1738184008154,0.12717107,104100.0,104090.0,1.09333874]
[1738184008451,0.013,104100.0,104090.0,1.09333874]
[1738184008846,0.009,104100.0,104090.0,1.09333874]
[1738184009056,0.009,104100.0,104090.0,0.934931]
[1738184009440,0.009,104100.0,104090.0,1.09333874]
[1738184009645,0.11431504,104110.0,104090.0,0.90020774]
[1738184009846,0.11431504,104110.0,104100.0,0.71132074]
[1738184010054,0.11431504,104110.0,104100.0,0.93132074]
[1738184010351,0.11431504,104110.0,104100.0,0.772913]
[1738184010540,0.30640904,104110.0,104100.0,0.772913]
[1738184010741,0.11431504,104110.0,104100.0,0.772913]
[1738184010946,0.11431504,104110.0,104100.0,0.93132074]
[1738184011143,0.11831504,104110.0,104100.0,0.93132074]
[1738184011349,0.14271384,104120.0,104110.0,0.192094]
[1738184011657,0.14271384,104120.0,104110.0,1.29020174]
[1738184011848,0.17125661,104130.0,104120.0,0.192076]
[1738184012049,0.17125661,104130.0,104120.0,1.07969148]
[1738184012253,0.42367538,104140.0,104130.0,0.192058]
[1738184012560,0.42381935,104140.0,104130.0,0.93126574]
[1738184013743,0.42481935,104140.0,104130.0,0.93726574]
[1738184013962,0.19923743,104140.0,104130.0,0.93726574]
[1738184014550,0.19923743,104140.0,104130.0,1.23926574]
[1738184014750,0.19923743,104140.0,104130.0,0.97365503]
[1738184014949,0.47936158,104150.0,104140.0,0.192039]
[1738184015151,0.47936158,104150.0,104140.0,1.28264674]
[1738184016347,0.47936158,104150.0,104140.0,0.73220774]
[1738184016546,0.47936158,104150.0,104140.0,0.56344674]
[1738184016748,0.47936158,104150.0,104140.0,0.92424674]
[1738184016954,0.47936158,104150.0,104140.0,1.09814674]
[1738184018051,0.28308883,104160.0,104140.0,1.20610774]
[1738184018052,0.26842205,104160.0,104140.0,1.20610774]
[1738184018252,0.19195,104190.0,104170.0,0.191969]
[1738184018455,0.29135692,104200.0,104180.0,0.71117274]
[1738184018656,0.48328992,104200.0,104180.0,0.92117274]
[1738184018859,0.191947,104190.0,104180.0,0.74917274]
[1738184019353,0.200947,104190.0,104180.0,0.74917274]
[1738184019663,0.200947,104190.0,104180.0,0.3988]
[1738184020054,0.200947,104190.0,104180.0,0.3998]
[1738184020357,0.009,104190.0,104180.0,1.11097274]
[1738184020663,0.009,104190.0,104180.0,0.75017274]
[1738184020866,0.018,104190.0,104180.0,1.11097274]
[1738184021154,0.209947,104190.0,104180.0,0.75017274]
[1738184021358,0.209947,104190.0,104180.0,0.591765]
[1738184021753,0.200947,104190.0,104180.0,0.591765]
[1738184021957,0.196947,104190.0,104180.0,0.951565]
[1738184022158,0.205947,104190.0,104180.0,0.96187503]
[1738184022561,0.205947,104190.0,104180.0,0.7606]
[1738184022763,0.205947,104190.0,104180.0,0.211]
[1738184023561,0.014,104190.0,104180.0,0.92217274]
[1738184025258,0.10014397,104200.0,104180.0,1.03020774]
[1738184025452,0.10014397,104200.0,104190.0,0.71115474]
[1738184025659,0.10014397,104200.0,104190.0,1.08635474]
[1738184026662,0.10914397,104200.0,104190.0,1.08735474]
[1738184027955,0.11514397,104200.0,104190.0,1.08735474]
[1738184028466,0.10014397,104200.0,104190.0,1.08935474]
[1738184028653,0.10014397,104200.0,104190.0,1.09035474]
[1738184028854,0.10014397,104200.0,104190.0,1.54876248]
[1738184029170,0.191876,104230.0,104210.0,0.15840774]
[1738184029356,0.191876,104230.0,104210.0,0.93111574]
[1738184030260,0.19201997,104230.0,104210.0,0.93125971]
[1738184030559,0.20101997,104230.0,104220.0,0.552692]
[1738184030758,0.00914397,104230.0,104220.0,0.93109974]
[1738184030961,0.20101697,104230.0,104220.0,0.411892]
[1738184031357,0.01714397,104230.0,104220.0,0.93109974]
[1738184031552,0.01714397,104230.0,104220.0,0.57029974]
[1738184031753,0.01714397,104230.0,104220.0,0.93109974]
[1738184031959,0.01614397,104230.0,104220.0,0.93309974]
[1738184033564,0.01614397,104230.0,104220.0,1.12309974]
[1738184033767,0.1828,104260.0,104220.0,1.23120774]
[1738184034070,0.375002,104270.0,104260.0,0.191818]
[1738184034265,0.375002,104270.0,104260.0,0.57022574]
[1738184034568,0.375002,104270.0,104260.0,0.411818]
[1738184034755,0.375002,104270.0,104260.0,0.22]
[1738184035365,0.380002,104270.0,104260.0,0.221]
[1738184035967,0.385002,104270.0,104260.0,0.221]
[1738184036875,0.385002,104270.0,104260.0,0.57122574]
[1738184037062,0.385002,104270.0,104260.0,0.37940774]
[1738184037370,0.385002,104270.0,104260.0,0.412818]
[1738184038160,0.385002,104270.0,104260.0,0.221]
[1738184038361,0.385002,104270.0,104260.0,0.57122574]
[1738184039065,0.385002,104270.0,104260.0,0.412818]
[1738184039461,0.385002,104270.0,104260.0,0.57122574]
[1738184039659,0.01,104270.0,104260.0,0.93202574]
[1738184039971,9.602e-05,104280.0,104270.0,0.1918]
[1738184040172,9.602e-05,104280.0,104270.0,0.93100774]
[1738184040962,0.19187702,104280.0,104270.0,0.22]
[1738184041269,9.602e-05,104280.0,104270.0,0.57020774]
[1738184041471,0.19187702,104280.0,104270.0,0.57020774]
[1738184041768,0.21187702,104280.0,104270.0,0.4118]
[1738184042069,0.02009602,104280.0,104270.0,0.93100774]
[1738184042270,0.02009602,104280.0,104270.0,0.93500774]
[1738184043267,0.02009602,104280.0,104270.0,0.93700774]
[1738184043473,0.57267702,104280.0,104270.0,0.226]
[1738184043657,0.21187702,104280.0,104270.0,0.226]
[1738184043861,0.21187702,104280.0,104270.0,0.57620774]
[1738184044059,0.21187702,104280.0,104270.0,0.58020774]
[1738184044575,0.57267702,104280.0,104270.0,0.222]
[1738184044768,0.38957702,104280.0,104270.0,0.223]
[1738184045069,0.75037702,104280.0,104270.0,0.224]
[1738184045274,0.75037702,104280.0,104270.0,0.231]
[1738184045470,0.38957702,104280.0,104270.0,0.4228]
[1738184045775,0.02009602,104280.0,104270.0,0.58120774]
[1738184046366,0.21187702,104280.0,104270.0,0.58120774]
[1738184047274,0.21187702,104280.0,104270.0,0.57820774]
[1738184047472,0.21187702,104280.0,104270.0,0.4148]
[1738184047675,0.21187702,104280.0,104270.0,0.94200774]
[1738184048476,0.02009602,104280.0,104270.0,0.94200774]
[1738184049176,0.02009602,104280.0,104270.0,1.28481548]
[1738184049365,0.02009602,104280.0,104270.0,1.46541548]
[1738184049572,0.1,104300.0,104290.0,0.191763]
[1738184049876,0.1,104300.0,104290.0,0.93097074]
[1738184050277,0.1,104300.0,104290.0,1.29177074]
[1738184050474,0.14203526,104330.0,104320.0,0.191708]
[1738184050675,0.14203526,104330.0,104320.0,1.43012348]
[1738184050980,0.14203526,104330.0,104320.0,1.27171574]
[1738184051868,0.25551329,104360.0,104320.0,1.23841548]
[1738184052069,0.25551329,104360.0,104350.0,1.07166074]
[1738184052277,0.25551329,104360.0,104350.0,1.29166074]
[1738184052967,0.25551329,104360.0,104350.0,0.57006074]
[1738184053174,0.25551329,104360.0,104350.0,0.93086074]
[1738184053763,0.369116,104370.0,104350.0,0.93386074]
[1738184054068,0.369116,104370.0,104350.0,0.775453]
[1738184054263,0.369116,104370.0,104350.0,0.783453]
[1738184055273,0.191634,104360.0,104350.0,0.231]
[1738184055777,0.191634,104360.0,104350.0,0.228]
[1738184055981,0.191634,104360.0,104350.0,0.24018997]
[1738184056370,0.36912,104370.0,104350.0,0.79264097]
[1738184056770,0.36912,104370.0,104350.0,0.78364097]
[1738184056969,0.36912,104370.0,104350.0,0.94604871]
[1738184057173,0.36912,104370.0,104350.0,0.78764097]
[1738184057370,0.5383,104370.0,104350.0,0.78364097]
[1738184057572,0.191634,104360.0,104350.0,0.22]
[1738184057973,0.552434,104360.0,104350.0,0.228]
[1738184058688,0.552434,104360.0,104340.0,0.00014397]
[1738184058689,0.97761548,104360.0,104340.0,0.00014397]
[1738184058974,0.97761548,104360.0,104320.0,0.00143769]
[1738184058975,0.191689,104330.0,104320.0,0.00143769]
[1738184059183,0.552489,104330.0,104320.0,0.09143769]
[1738184059377,0.71089674,104330.0,104320.0,0.09143769]
[1738184059581,1.07169674,104330.0,104320.0,0.09143769]
[1738184059772,0.191735,104310.0,104290.0,1.31677065]
[1738184059972,0.191735,104310.0,104300.0,0.191745]
[1738184060283,0.191735,104310.0,104300.0,0.21]
[1738184060676,0.552535,104310.0,104300.0,0.21]
[1738184060882,0.71094274,104310.0,104300.0,0.21]
[1738184061381,0.552535,104310.0,104300.0,0.212]
[1738184061583,0.552535,104310.0,104300.0,0.216]
[1738184061789,0.71094274,104310.0,104300.0,0.216]
[1738184062082,1.06624274,104310.0,104300.0,0.216]
[1738184062281,1.06624274,104310.0,104300.0,0.03]
[1738184062282,0.3608,104310.0,104300.0,0.03]
[1738184062584,0.552537,104310.0,104300.0,0.03]
[1738184063186,0.72820088,104310.0,104300.0,0.031]
[1738184063679,0.72020088,104310.0,104300.0,0.03]
[1738184063882,0.72920088,104310.0,104300.0,0.031]
[1738184064275,0.72020088,104310.0,104300.0,0.03]
[1738184064481,0.72020088,104310.0,104300.0,0.038]
[1738184064678,0.56179314,104310.0,104300.0,0.038]
[1738184065887,0.72620088,104310.0,104300.0,0.033]
[1738184066093,0.56779314,104310.0,104300.0,0.033]
[1738184066282,0.72620088,104310.0,104300.0,0.033]
[1738184066483,0.91410088,104310.0,104300.0,0.032]
[1738184066785,0.191745,104300.0,104290.0,0.00014397]
[1738184067091,0.71095274,104300.0,104290.0,0.10014397]
[1738184067974,0.552545,104300.0,104290.0,0.10014397]
[1738184068174,0.552545,104300.0,104290.0,0.29190697]
[1738184068175,0.191745,104300.0,104290.0,0.29190697]
[1738184069284,0.191745,104300.0,104290.0,0.29290697]
[1738184069890,0.191745,104300.0,104290.0,0.29590697]
[1738184070182,0.71095274,104300.0,104290.0,0.10714397]
[1738184070386,0.35115274,104300.0,104290.0,0.11214397]
[1738184070587,0.71195274,104300.0,104290.0,0.11214397]
[1738184071178,0.553545,104300.0,104290.0,0.11214397]
[1738184071574,0.71195274,104300.0,104290.0,0.11214397]
[1738184072289,0.71195274,104300.0,104290.0,0.11114397]
[1738184072797,0.552545,104300.0,104290.0,0.10314397]
[1738184072985,0.552545,104300.0,104290.0,0.10914397]
[1738184073185,0.71095274,104300.0,104290.0,0.10914397]
[1738184073789,0.552545,104300.0,104290.0,0.10914397]
[1738184073984,0.552545,104300.0,104290.0,0.30090697]
[1738184074197,0.71095274,104300.0,104290.0,0.10914397]
[1738184075886,0.1918,104270.0,104260.0,0.0014384]
[1738184076085,0.191785,104280.0,104270.0,0.1918]
[1738184076286,0.191765,104290.0,104270.0,0.628749]
[1738184076490,0.51920774,104300.0,104280.0,0.191763]
[1738184076692,0.552563,104290.0,104280.0,0.411763]
[1738184076889,0.35017074,104290.0,104280.0,0.22014397]
[1738184077089,0.552563,104290.0,104280.0,0.41192497]
[1738184077286,0.35030571,104300.0,104290.0,0.191763]
[1738184077589,0.19189797,104300.0,104290.0,0.381763]
[1738184078185,0.71110571,104300.0,104290.0,0.19]
[1738184078782,0.19189797,104300.0,104290.0,0.381763]
[1738184079289,0.19189797,104300.0,104290.0,0.90097074]
[1738184079290,0.00014397,104300.0,104290.0,0.90097074]
[1738184079794,9.7e-07,104300.0,104290.0,0.90597074]
[1738184080092,9.7e-07,104300.0,104290.0,0.90797074]
[1738184080293,0.19939711,104330.0,104320.0,0.35011574]
[1738184080590,0.17095843,104350.0,104320.0,0.35011574]
[1738184080591,0.18037574,104350.0,104340.0,0.191671]
[1738184080795,0.18037574,104350.0,104340.0,0.54007874]
[1738184080982,0.73282874,104350.0,104340.0,0.19]
[1738184081179,0.37202874,104350.0,104340.0,0.19]
[1738184081487,0.37202874,104350.0,104340.0,0.381671]
[1738184081488,0.18037574,104350.0,104340.0,0.381671]
[1738184081792,0.37202874,104350.0,104340.0,0.34840774]
[1738184082293,0.37202874,104350.0,104340.0,0.19]
[1738184082492,0.74082874,104350.0,104340.0,0.191]
[1738184082682,0.38002874,104350.0,104340.0,0.191]
[1738184083290,0.56987031,104350.0,104340.0,0.191]
[1738184083485,0.20907031,104350.0,104340.0,0.191]
[1738184083793,0.56987031,104350.0,104340.0,0.191]
[1738184085293,0.57787031,104350.0,104340.0,0.192]
[1738184085886,0.21707031,104350.0,104340.0,0.313671]
[1738184086080,0.57787031,104350.0,104340.0,0.122]
[1738184086287,0.73627805,104350.0,104340.0,0.122]
[1738184086587,1.03627805,104350.0,104340.0,0.122]
[1738184087292,0.73627805,104350.0,104340.0,0.122]
[1738184091291,0.57787031,104350.0,104340.0,0.313671]
[1738184092497,0.016,104350.0,104340.0,0.674471]
[1738184092700,0.016,104350.0,104340.0,0.865071]
[1738184092893,0.016,104350.0,104340.0,1.053771]
[1738184093094,0.207653,104350.0,104340.0,1.053771]
[1738184094902,0.36606074,104350.0,104340.0,0.5013]
[1738184095092,0.36606074,104350.0,104340.0,0.3126]
[1738184095701,0.36606074,104350.0,104340.0,0.504271]
[1738184096199,0.207653,104350.0,104340.0,0.504271]
[1738184096789,0.36606074,104350.0,104340.0,0.3126]
[1738184096994,0.72686074,104350.0,104340.0,0.3126]
[1738184097198,0.72686074,104350.0,104340.0,0.122]
[1738184097199,0.36606074,104350.0,104340.0,0.122]
[1738184097394,0.207653,104350.0,104340.0,0.122]
[1738184097597,0.207653,104350.0,104340.0,0.313671]
[1738184097901,0.568453,104350.0,104340.0,0.313671]
[1738184098296,0.72686074,104350.0,104340.0,0.313671]
[1738184098599,0.36606074,104350.0,104340.0,0.313671]
[1738184099100,0.207653,104350.0,104340.0,0.313671]
[1738184099706,0.72686074,104350.0,104340.0,0.122]
[1738184100098,0.36606074,104350.0,104340.0,0.122]
[1738184100298,0.016,104350.0,104340.0,0.313671]
[1738184100499,0.016,104350.0,104340.0,0.83287874]
[1738184101003,0.00014397,104360.0,104350.0,0.191653]
[1738184101203,0.00014397,104360.0,104350.0,1.128153]
[1738184102005,1.2686718,104390.0,104380.0,0.191598]
[1738184102198,1.2686718,104390.0,104380.0,0.19]
[1738184102793,0.1424078,104390.0,104380.0,0.742398]
[1738184103004,0.1424078,104390.0,104380.0,0.90080574]
[1738184103207,0.1424078,104390.0,104380.0,0.935298]
[1738184103909,0.1424078,104390.0,104380.0,0.936298]
[1738184104403,0.85319854,104390.0,104380.0,0.3733]
[1738184104905,0.85319854,104390.0,104380.0,0.3723]
[1738184105110,0.71079074,104390.0,104380.0,0.3733]
[1738184105310,0.71079074,104390.0,104380.0,0.192]
[1738184105609,0.552383,104390.0,104380.0,0.192]
[1738184106108,0.71079074,104390.0,104380.0,0.192]
[1738184106502,0.552383,104390.0,104380.0,0.192]
[1738184107107,0.56188796,104390.0,104380.0,0.192]
[1738184107307,0.7202957,104390.0,104380.0,0.192]
[1738184107517,0.56188796,104390.0,104380.0,0.192]
[1738184107709,0.7202957,104390.0,104380.0,0.192]
[1738184107914,1.0810957,104390.0,104380.0,0.192]
[1738184108312,1.2717957,104390.0,104380.0,0.192]
[1738184108813,0.75258796,104390.0,104380.0,0.192]
[1738184109020,1.2717957,104390.0,104380.0,0.192]
[1738184109811,0.20108796,104390.0,104380.0,0.383617]
[1738184110022,0.291583,104400.0,104390.0,0.191598]
[1738184110218,0.291583,104400.0,104390.0,0.301598]
[1738184110219,0.652383,104400.0,104390.0,0.301598]
[1738184110425,0.291583,104400.0,104390.0,0.301598]
[1738184111421,0.2008955,104420.0,104390.0,0.63020774]
[1738184111627,0.2008955,104420.0,104410.0,0.191562]
[1738184111814,0.191555,104420.0,104410.0,0.381562]
[1738184112323,0.71076274,104420.0,104410.0,0.19]
[1738184112525,0.552355,104420.0,104410.0,0.19]
[1738184112724,0.191555,104420.0,104410.0,0.381562]
[1738184113725,0.37016117,104430.0,104410.0,0.3822]
[1738184113915,0.191543,104420.0,104410.0,0.574756]
[1738184114528,0.20089317,104430.0,104420.0,0.191543]
[1738184114834,0.552294,104450.0,104430.0,0.191509]
[1738184115124,0.191494,104450.0,104440.0,0.191507]
[1738184115327,0.552294,104450.0,104440.0,0.401507]
[1738184115626,0.56179455,104450.0,104440.0,0.401507]
[1738184115930,0.552281,104460.0,104440.0,0.72920774]
[1738184116130,0.191488,104450.0,104440.0,0.587105]